lending/lending_fUSD_20241014
["ID","MTS","AMOUNT","RATE_DAILY","PERIOD"]
[340226975,1728868239943,-322.56152394,0.000109,2]
[340226976,1728868239954,-1367.76559331,0.000109,2]
[340226977,1728868239998,-1504.8021717,0.000109,2]
[340226978,1728868240061,-653.66718223,0.000109,2]
[340226979,1728868240073,-5456.23636126,0.000109,2]
[340226980,1728868240125,-883.29999,0.000109,2]
[340226981,1728868240136,-3705.05,0.000109,2]
[340226982,1728868240186,-1367.05992544,0.000109,2]
[340226983,1728868240199,-1008.91552831,0.000109,2]
[340227023,1728868242948,-715.35786735,0.000108,2]
[340227024,1728868242959,-265.6000002,0.000108,2]
[340227025,1728868242970,-164.23253245,0.000108,2]
[340227026,1728868242979,-212.88439864,0.000109,2]
[340227027,1728868243069,-653.31270692,0.000109,2]
[340227028,1728868243080,-1278.38713673,0.000109,2]
[340227029,1728868243185,-1079.31918,0.000109,2]
[340227031,1728868245930,-262.3564,0.000108,2]
[340227032,1728868245939,-710.89270627,0.000109,2]
[340227033,1728868245952,-3700.0,0.000109,2]
[340227034,1728868245990,-668.30843146,0.000109,2]
[340227035,1728868246002,-343.53915486,0.000109,2]
[340227036,1728868246013,-32737.93459563,0.000109,2]
[340227037,1728868246024,-63283.37110459,0.000109,2]
[340227038,1728868246033,-1000.0,0.000109,2]
[340227039,1728868246042,-161.03359681,0.000109,2]
[340227040,1728868246051,-161.03359681,0.000109,2]
[340227041,1728868246060,-161.03359681,0.000109,2]
[340227042,1728868246069,-179.27909921,0.000109,2]
[340227043,1728868246079,-176.82465575,0.000109,2]
[340227044,1728868246088,-176.82465574,0.00010901,2]
[340227045,1728868246098,-161.61,0.00010959,2]
[340227046,1728868246107,-250.0,0.00010959,2]
[340227047,1728868246116,-158.96,0.00010959,2]
[340227048,1728868246125,-686.52,0.00010959,2]
[340227049,1728868246134,-201.30997089,0.00010973,2]
[340227050,1728868246143,-241.92,0.00010977,2]
[340227051,1728868246152,-167.92,0.00010979,2]
[340227052,1728868246162,-229.25667006,0.0001099,2]
[340227053,1728868246171,-229.25667006,0.0001099,2]
[340227054,1728868246180,-229.25667006,0.0001099,2]
[340227055,1728868246189,-11677.4019932,0.00010994,2]
[340227056,1728868246200,-2662.7289299,0.00010994,2]
[340227057,1728868246209,-200.0,0.00010996,2]
[340227058,1728868246218,-150.01,0.00010999,2]
[340227059,1728868246227,-576.0,0.00011,2]
[340227060,1728868246236,-70059.1066488,0.00011,2]
[340227061,1728868246247,-416.0689448,0.00011,2]
[340227062,1728868246258,-522.01898272,0.00011,2]
[340227063,1728868246269,-53047.53502679,0.00011,2]
[340227066,1728868428674,222.0,0.00027,60]
[340227067,1728868438302,151.75,9.491e-05,2]
[340227069,1728868891593,384.65,9.663e-05,2]
[340227070,1728868992628,151.75,9.195e-05,2]
[340227071,1728869129116,368.93344449,0.000101,2]
[340227072,1728869154433,1279.31311316,6.94e-05,2]
[340227087,1728869403430,268.57,0.00012301,14]
[340227089,1728869413516,382.97,9.467e-05,2]
[340227094,1728869432235,-319.86038199,0.000107,2]
[340227095,1728869432373,-323.86162,0.000107,2]
[340227096,1728869432386,-1655.58399801,0.000107,2]
[340227097,1728869432395,-161.46956769,0.0001078,2]
[340227098,1728869432408,-12.96143231,0.0001078,2]
[340227099,1728869432417,-173.143,0.0001078,2]
[340227100,1728869432426,-6287.67070912,0.000108,2]
[340227101,1728869432503,-397.08384421,0.000108,2]
[340227102,1728869432517,-31393.24249803,0.000108,2]
[340227103,1728869432528,-822.5,0.000108,2]
[340227104,1728869432539,-258.76851609,0.000108,2]
[340227105,1728869432550,-1578.55756815,0.000108,2]
[340227108,1728869438349,-1216.02192436,0.000108,2]
[340227109,1728869438360,-2513.85068456,0.000108,2]
[340227110,1728869438634,-896.54677076,0.000108,2]
[340227111,1728869438646,-849.39240122,0.000108,2]
[340227112,1728869440216,-3835.80015978,0.000108,2]
[340227113,1728869440349,-526.41,0.000108,2]
[340227114,1728869440360,-306.09729367,0.000108,2]
[340227115,1728869440371,-372.08294114,0.000108,2]
[340227116,1728869440383,-314.01381,0.000108,2]
[340227117,1728869440397,-758.79780336,0.000108,2]
[340227118,1728869440479,-3249.95340702,0.000108,2]
[340227119,1728869440604,-44423.20966853,0.000108,2]
[340227121,1728869440614,-1204.4553,0.000108,2]
[340227123,1728869440623,-367.1293,0.000108,2]
[340227125,1728869440632,-16351.65687153,0.000108,2]
[340227301,1728869443567,-313.75221724,0.000108,2]
[340227302,1728869443579,-291.59768324,0.000108,2]
[340227303,1728869443591,-338.94299958,0.000108,2]
[340227468,1728869446288,-20917.56690947,0.000108,2]
[340227469,1728869446300,-4855.4545189,0.000108,2]
[340227470,1728869446311,-96717.08290168,0.000108,2]
[340227471,1728869446322,-47083.92042439,0.000108,2]
[340227477,1728869492075,191.21508645,0.00027,60]
[340227479,1728869654116,150.0,0.00027,120]
[340227480,1728869700130,150.0,0.00027,119]
[340227481,1728869709476,150.0,0.00027,118]
[340227482,1728869718206,150.0,0.00027,117]
[340227483,1728869729284,150.0,0.00027,116]
[340227484,1728869735222,170.85,0.00010208,2]
[340227485,1728869744495,985.8,0.00010208,2]
[340227486,1728869756399,150.0,0.00027,115]
[340227487,1728869775434,150.0,0.00027,114]
[340227488,1728869785684,150.0,0.00027,113]
[340227489,1728869795467,150.0,0.00027,112]
[340227490,1728869802889,150.0,0.00027,111]
[340227491,1728869810769,150.0,0.00027,110]
[340227492,1728869819016,150.0,0.00027,109]
[340227493,1728869826942,150.0,0.00027,108]
[340227494,1728869847695,150.0,0.00027,107]
[340227495,1728869856462,150.0,0.00027,106]
[340227496,1728869865042,150.0,0.00027,105]
[340227497,1728869873196,150.0,0.00027,104]
[340227498,1728869880781,150.0,0.00027,103]
[340227500,1728869899777,150.0,0.00027,102]
[340227501,1728869908828,150.0,0.00027,101]
[340227502,1728869916618,150.0,0.00027,100]
[340227503,1728869925750,150.0,0.00027,99]
[340227504,1728869934029,150.0,0.00027,98]
[340227505,1728869937420,956.9,0.0001022,2]
[340227506,1728869941725,150.0,0.00027,97]
[340227507,1728869949631,150.0,0.00027,96]
[340227508,1728869961234,150.0,0.00027,95]
[340227509,1728869965535,399.49,8.219e-05,2]
[340227510,1728869972950,150.0,0.00027,94]
[340227512,1728869981492,150.0,0.00027,93]
[340227513,1728869986367,550.0,0.0001,2]
[340227514,1728869992033,150.0,0.00027,92]
[340227515,1728870000322,150.0,0.00027,91]
[340227516,1728870007641,150.0,0.00027,90]
[340227517,1728870010547,1852.42,0.00010179,2]
[340227518,1728870017689,150.0,0.00027,89]
[340227519,1728870020274,200.0,0.00027,60]
[340227520,1728870038704,200.0,0.00010179,2]
[340227521,1728870047055,150.0,0.00027,88]
[340227522,1728870049685,184.72,0.00010208,2]
[340227523,1728870056870,150.0,0.00027,87]
[340227524,1728870067331,150.0,0.00027,86]
[340227525,1728870076823,150.0,0.00027,85]
[340227526,1728870087801,150.0,0.00027,84]
[340227527,1728870097604,150.0,0.00027,83]
[340227528,1728870107672,23900.0,0.00010135,2]
[340227529,1728870108735,150.0,0.00027,82]
[340227530,1728870119941,150.0,0.00027,81]
[340227531,1728870135400,150.0,0.00027,80]
[340227532,1728870149720,150.0,0.00027,79]
[340227533,1728870152873,250.0,0.00010211,2]
[340227534,1728870158577,150.0,0.00027,78]
[340227535,1728870167172,150.0,0.00027,77]
[340227536,1728870176548,150.0,0.00027,76]
[340227537,1728870186813,-289.04,0.00010235,2]
[340227538,1728870187952,278.28796564,0.00010151,2]
[340227539,1728870188039,150.0,0.00027,75]
[340227540,1728870188491,-286.19724393,0.00010235,2]
[340227541,1728870189928,-268.1548196,0.00010235,2]
[340227542,1728870191391,-156.60793647,0.00010235,2]
[340227543,1728870194290,278.7222,0.00010138,2]
[340227544,1728870199197,150.0,0.00027,74]
[340227545,1728870208356,150.0,0.00027,73]
[340227546,1728870218117,150.0,0.00027,72]
[340227547,1728870230141,150.0,0.00027,71]
[340227548,1728870241784,150.0,0.00027,70]
[340227549,1728870250081,568.66,0.00010235,2]
[340227550,1728870253449,150.0,0.00027,69]
[340227551,1728870271461,150.0,0.00027,67]
[340227552,1728870280129,500.0,0.00010235,2]
[340227553,1728870283928,150.0,0.00027,66]
[340227554,1728870295667,150.0,0.00027,65]
[340227555,1728870302243,160.36803978,0.0001019,2]
[340227556,1728870305616,150.0,0.00027,64]
[340227557,1728870314916,150.0,0.00027,63]
[340227558,1728870324778,150.0,0.00027,62]
[340227559,1728870334509,150.0,0.00027,61]
[340227560,1728870343582,170.77,0.00010197,2]
[340227561,1728870345171,150.0,0.00027,60]
[340227562,1728870419469,150.0,0.00027,68]
[340227565,1728870519346,396.69,8.219e-05,2]
[340227566,1728870563326,199.11,0.0001012,2]
[340227567,1728870584494,150.0,0.00014003,10]
[340227570,1728870632364,-548.16321584,0.00010237,2]
[340227571,1728870632376,-3327.96126539,0.00010237,2]
[340227572,1728870632388,-1552.423596,0.00010237,2]
[340227573,1728870632539,-4523.08192277,0.00010237,2]
[340227574,1728870632549,-173.51,0.0001029,2]
[340227575,1728870632559,-150.49,0.00010295,2]
[340227576,1728870632568,-372.69,0.00010296,2]
[340227577,1728870632577,-3626.78256035,0.00010298,2]
[340227578,1728870632588,-638.96451344,0.00010298,2]
[340227579,1728870632599,-712.31800949,0.00010298,2]
[340227580,1728870632609,-2109.43741355,0.00010298,2]
[340227581,1728870632620,-4894.85182669,0.00010298,2]
[340227582,1728870632631,-301.2900896,0.00010298,2]
[340227583,1728870632643,-658.25,0.00010298,2]
[340227584,1728870632718,-448.41046665,0.00010298,2]
[340227585,1728870632727,-152.40877335,0.00010298,2]
[340227586,1728870632739,-2.74122665,0.00010298,2]
[340227587,1728870632748,-250.0,0.00010317,2]
[340227588,1728870632757,-396.69,0.00010481,2]
[340227589,1728870632766,-261.7665,0.000106,2]
[340227590,1728870632775,-511.6631,0.000106,2]
[340227591,1728870632785,-4781.8317,0.000106,2]
[340227592,1728870632796,-500.61992832,0.00010673,2]
[340227593,1728870632806,-504.52207244,0.00010673,2]
[340227594,1728870632815,-499.99,0.00010673,2]
[340227595,1728870632824,-503.03261504,0.00010673,2]
[340227596,1728870632833,-150.0,0.00010699,2]
[340227597,1728870632842,-7435.19828063,0.000107,2]
[340227598,1728870632853,-406.77852015,0.000107,2]
[340227599,1728870632863,-570.09,0.000107,2]
[340227600,1728870638674,-273.2828905,0.000107,2]
[340227601,1728870638686,-594.5,0.000107,2]
[340227602,1728870638698,-1851.34130064,0.000107,2]
[340227603,1728870638709,-729.82228752,0.000107,2]
[340227604,1728870638720,-289.4002629,0.000107,2]
[340227605,1728870638732,-14469.96847138,0.000107,2]
[340227606,1728870638744,-10135.65999346,0.000107,2]
[340227607,1728870638755,-16381.48089212,0.000107,2]
[340227608,1728870638767,-2183.16426548,0.000107,2]
[340227609,1728870638778,-1177.0,0.000107,2]
[340227610,1728870638791,-6628.30439943,0.000107,2]
[340227611,1728870638802,-450.87290596,0.000107,2]
[340227612,1728870638814,-281.55,0.000107,2]
[340227613,1728870638825,-592.08569065,0.000107,2]
[340227614,1728870638836,-464.49215407,0.000107,2]
[340227615,1728870638848,-35085.00768511,0.000107,2]
[340227616,1728870638857,-111405.3573,0.000107,2]
[340227617,1728870638867,-1265.4699,0.000107,2]
[340227618,1728870638877,-7218.871,0.000107,2]
[340227619,1728870638887,-1000.0,0.000107,2]
[340227620,1728870638896,-5382.0,0.00010781,2]
[340227621,1728870638906,-21741.2722,0.00010799,2]
[340227622,1728870638916,-5677.04865865,0.00010899,2]
[340227623,1728870638925,-170.70356016,0.000109,2]
[340227624,1728870638935,-7500.0,0.000109,2]
[340227625,1728870638944,-199.66322773,0.000109,2]
[340227626,1728870638954,-199.66322772,0.000109,2]
[340227627,1728870638964,-167.92,0.0001095,2]
[340227628,1728870638974,-163.71981694,0.00010958,2]
[340227629,1728870638984,-159.42,0.00010959,2]
[340227630,1728870638993,-157.09,0.00010959,2]
[340227631,1728870639003,-217.01,0.00010959,2]
[340227632,1728870639013,-161.2,0.00010959,2]
[340227633,1728870639022,-161.61,0.00010959,2]
[340227634,1728870639033,-250.0,0.00010959,2]
[340227635,1728870639043,-150.0,0.00010959,2]
[340227636,1728870639052,-507.73,0.00010959,2]
[340227637,1728870639061,-423.11,0.00010959,2]
[340227638,1728870639071,-352.59,0.00010959,2]
[340227639,1728870639080,-293.82,0.00010959,2]
[340227640,1728870639089,-244.85,0.00010959,2]
[340227641,1728870639099,-204.05,0.00010959,2]
[340227642,1728870639108,-170.04,0.00010959,2]
[340227643,1728870639117,-850.21,0.00010959,2]
[340227644,1728870639126,-214.75410745,0.00010997,2]
[340227645,1728870639135,-7429.84078662,0.00010997,2]
[340227646,1728870639145,-500.0,0.00010999,2]
[340227647,1728870639154,-500.0,0.00010999,2]
[340227648,1728870639163,-500.0,0.00010999,2]
[340227649,1728870639173,-500.15743188,0.00010999,2]
[340227650,1728870639183,-586.0,0.00011,2]
[340227651,1728870639193,-68972.45142799,0.00011,2]
[340227652,1728870639204,-4009.83074,0.00011,2]
[340227655,1728870640540,-114380.06417085,0.00011,2]
[340227656,1728870640551,-343.13376577,0.00011,2]
[340227657,1728870640703,-1160.93975803,0.00011,2]
[340227658,1728870640715,-1484.933899,0.00011,2]
[340227659,1728870640727,-590.3446827,0.00011,2]
[340227661,1728870643523,-524.0,0.00011,2]
[340227662,1728870643533,-686.0,0.00011,2]
[340227663,1728870643544,-1845.17700155,0.00011,2]
[340227664,1728870643555,-3664.28065587,0.00011,2]
[340227665,1728870643566,-3397.76989014,0.00011,2]
[340227666,1728870643577,-1269.05719409,0.00011,2]
[340227667,1728870643588,-2744.75526601,0.00011,2]
[340227668,1728870643599,-2829.58704795,0.00011,2]
[340227669,1728870643610,-769.133491,0.00011,2]
[340227670,1728870643620,-500.0,0.00011,2]
[340227671,1728870643631,-36813.03163764,0.00011,2]
[340227672,1728870643642,-470.94513297,0.00011,2]
[340227673,1728870643681,-4783.16,0.00011,2]
[340227674,1728870643692,-435.216782,0.00011,2]
[340227675,1728870643704,-6020.00259753,0.00011,2]
[340227676,1728870643717,-18847.96200157,0.00011,2]
[340227677,1728870643729,-3011.29539032,0.00011,2]
[340227678,1728870643835,-511.74477419,0.00011,2]
[340227679,1728870643846,-9245.25,0.00011,2]
[340227680,1728870643857,-167975.93750219,0.00011,2]
[340227682,1728870646470,-10019.09632223,0.00011,2]
[340227683,1728870646482,-66342.1297869,0.00011,2]
[340227684,1728870646617,-1301.37556257,0.00011,2]
[340227685,1728870709528,1337.0,0.00027,60]
[340227686,1728870782858,1157.2277,0.00010137,2]
[340227687,1728871061362,187.42,9.703e-05,2]
[340227688,1728871062803,390.53,8.219e-05,2]
[340227689,1728871193297,200.0,9.698e-05,2]
[340227690,1728871224624,800.0,9.678e-05,2]
[340227691,1728871229164,23900.0,9.678e-05,2]
[340227692,1728871256172,250.0,9.673e-05,2]
[340227693,1728871299067,250.0,9.697e-05,2]
[340227694,1728871311523,443.85,9.697e-05,2]
[340227695,1728871512011,150.0,9.888e-05,2]
[340227696,1728871616627,387.39,8.219e-05,2]
[340227699,1728871694231,173.31,9.639e-05,2]
[340227700,1728871770772,23900.0,9.636e-05,2]
[340227701,1728871794841,250.0,9.636e-05,2]
[340227702,1728871795506,250.0,9.636e-05,2]
[340227703,1728871808595,550.0,0.0001,2]
[340227704,1728871831662,-284.7029,0.0001036,2]
[340227705,1728871831672,-150.0,0.00010437,2]
[340227706,1728871831681,-350.71743485,0.00010459,2]
[340227707,1728871831693,-36.67256515,0.00010459,2]
[340227708,1728871831702,-300.0,0.00010499,2]
[340227709,1728871831711,-1379.80513904,0.000105,2]
[340227710,1728871831722,-517.85511205,0.000105,2]
[340227711,1728871831736,-536.25164891,0.000105,2]
[340227712,1728871831745,-530.31266835,0.000105,2]
[340227713,1728871831756,-1170.12792558,0.000105,2]
[340227714,1728871831767,-8525.8809527,0.000105,2]
[340227715,1728871831851,-784.65653678,0.000105,2]
[340227716,1728871831863,-1647.99291659,0.000105,2]
[340227717,1728871831871,-482.45693629,0.000105,2]
[340227718,1728871831882,-626.02976371,0.000105,2]
[340227719,1728871831891,-201.10735914,0.000105,2]
[340227720,1728871831903,-1725.57804086,0.000105,2]
[340227721,1728871831912,-176.9025,0.000105,2]
[340227722,1728871831921,-1006.94081949,0.000105,2]
[340227723,1728871831932,-5218.70128051,0.000105,2]
[340227724,1728871831941,-2500.0,0.000105,2]
[340227725,1728871831950,-2275.88700534,0.000105,2]
[340227726,1728871831959,-236.78,0.00010537,2]
[340227727,1728871831968,-236.78,0.0001054,2]
[340227728,1728871831977,-236.78,0.00010542,2]
[340227729,1728871831989,-236.78,0.00010545,2]
[340227730,1728871831998,-236.78,0.00010548,2]
[340227731,1728871832007,-1035.65,0.00010548,2]
[340227732,1728871832016,-499.99,0.00010548,2]
[340227733,1728871832025,-236.78,0.00010551,2]
[340227734,1728871832034,-236.78,0.00010553,2]
[340227735,1728871832042,-236.78,0.00010556,2]
[340227736,1728871832051,-236.78,0.00010559,2]
[340227737,1728871832060,-236.78,0.00010562,2]
[340227738,1728871832069,-236.78,0.00010565,2]
[340227739,1728871832078,-236.78,0.00010567,2]
[340227740,1728871832087,-236.78,0.0001057,2]
[340227741,1728871832096,-503.31567371,0.00010573,2]
[340227742,1728871832105,-236.78,0.00010573,2]
[340227743,1728871832114,-236.78,0.00010576,2]
[340227744,1728871832123,-236.78,0.00010578,2]
[340227745,1728871832131,-236.78,0.00010581,2]
[340227746,1728871832140,-236.78,0.00010584,2]
[340227747,1728871832148,-236.78,0.00010587,2]
[340227748,1728871832157,-236.78,0.00010589,2]
[340227749,1728871832166,-14612.85604044,0.000106,2]
[340227750,1728871832177,-482.73538408,0.000106,2]
[340227751,1728871832188,-33737.09403308,0.000106,2]
[340227752,1728871832198,-2381.48970547,0.000106,2]
[340227753,1728871832209,-1240.0,0.000106,2]
[340227754,1728871837941,-7135.51708441,0.000106,2]
[340227755,1728871837953,-449.79463017,0.000106,2]
[340227756,1728871837964,-325.12597568,0.000106,2]
[340227757,1728871838123,-1803.988746,0.000106,2]
[340227758,1728871838134,-4340.75595051,0.000106,2]
[340227762,1728871839812,-1190.68831724,0.000106,2]
[340227763,1728871839823,-561.22489336,0.000106,2]
[340227764,1728871840035,-117762.34973956,0.000106,2]
[340227766,1728871840044,-100000.0,0.000106,2]
[340227768,1728871840054,-1000.0,0.000106,2]
[340227770,1728871840063,-173.51,0.00010683,2]
[340227772,1728871840072,-173.31,0.00010844,2]
[340227774,1728871840082,-800.0,0.00010888,2]
[340227775,1728871840091,-157.28545586,0.000109,2]
[340227776,1728871840100,-171.78612486,0.000109,2]
[340227777,1728871840109,-418.58936257,0.000109,2]
[340227778,1728871840118,-1883.63160928,0.000109,2]
[340227779,1728871840127,-250.0,0.00010959,2]
[340227780,1728871840136,-328.23,0.00010959,2]
[340227781,1728871840145,-159.42,0.00010959,2]
[340227782,1728871840155,-206.47,0.00010959,2]
[340227783,1728871840164,-201.9408564,0.00010973,2]
[340227785,1728871840173,-152.31045046,0.00010986,2]
[340227787,1728871840182,-295.99488578,0.0001099,2]
[340227789,1728871840191,-295.99488578,0.0001099,2]
[340227791,1728871840200,-295.99488578,0.0001099,2]
[340227793,1728871840209,-1960.8440363,0.00010997,2]
[340227795,1728871840219,-567.94527891,0.00010997,2]
[340227797,1728871840227,-361.46500131,0.00010999,2]
[340227799,1728871840238,-649.765341,0.00010999,2]
[340227801,1728871840247,-527.0,0.00011,2]
[340227803,1728871840257,-322362.89187182,0.00011,2]
[340227849,1728871845954,-484.0,0.00010769,2]
[340227850,1728871845966,-521.0,0.00011,2]
[340227851,1728871845975,-27236.73067071,0.00011,2]
[340227852,1728872077589,172.08,9.544e-05,2]
[340227853,1728872084812,-150.0,0.00010499,2]
[340227854,1728872084832,-300.0,0.00010499,2]
[340227855,1728872084854,-550.0,0.000105,2]
[340227856,1728872085896,-1000.0,0.000105,2]
[340227857,1728872086837,-1000.0,0.000105,2]
[340227858,1728872087768,-1000.0,0.000105,2]
[340227859,1728872088710,-1000.0,0.000105,2]
[340227860,1728872089638,-1000.0,0.000105,2]
[340227861,1728872090634,-1000.0,0.000105,2]
[340227862,1728872091659,-950.0,0.000105,2]
[340227863,1728872091679,-50.0,0.000105,2]
[340227864,1728872092844,-655.4192,0.000105,2]
[340227865,1728872092864,-344.5808,0.000105,2]
[340227866,1728872093850,-1000.0,0.000105,2]
[340227867,1728872099081,-600.0,0.000105,2]
[340227868,1728872117271,473.54,9.745e-05,2]
[340227869,1728872159316,-1000.0,0.000105,2]
[340227870,1728872160690,-1000.0,0.000105,2]
[340227871,1728872161641,-1000.0,0.000105,2]
[340227872,1728872162790,-1000.0,0.000105,2]
[340227873,1728872164005,-1000.0,0.000105,2]
[340227874,1728872165095,-1000.0,0.000105,2]
[340227875,1728872166145,-1000.0,0.000105,2]
[340227876,1728872167222,-1000.0,0.000105,2]
[340227877,1728872168211,-1000.0,0.000105,2]
[340227878,1728872169373,-1000.0,0.000105,2]
[340227879,1728872173752,-150.0,0.000105,2]
[340227880,1728872193729,-1000.0,0.000105,2]
[340227881,1728872197664,-900.0,0.000105,2]
[340227882,1728872231314,-1000.0,0.000105,2]
[340227883,1728872232559,-1000.0,0.000105,2]
[340227884,1728872233677,-1000.0,0.000105,2]
[340227885,1728872234735,-1000.0,0.000105,2]
[340227886,1728872238607,-600.0,0.000105,2]
[340227887,1728872482415,903.653358,0.00010215,2]
[340227888,1728872512874,699.29,0.00010193,2]
[340227889,1728872539981,1593.53,0.00010122,2]
[340227890,1728872548954,162.3936,0.00010224,2]
[340227891,1728872568890,200.0,0.00010144,2]
[340227892,1728872595239,172.08,8.209e-05,2]
[340227893,1728872595494,172.08,9.577e-05,2]
[340227911,1728872602728,602.435572,0.00010215,2]
[340227917,1728872612484,517.29,8.269e-05,2]
[340227918,1728872694475,447.57,0.00010224,2]
[340227919,1728872713082,220.08842143,9.888e-05,2]
[340227920,1728872723034,401.62371468,0.00010215,2]
[340227921,1728872729785,10507.19939244,0.000101,2]
[340227922,1728872732787,5556.66,0.00010163,2]
[340227923,1728872739250,23900.0,0.00010112,2]
[340227924,1728872755500,3549.32970524,6.94e-05,2]
[340227925,1728872768162,531.6130208,0.0001,2]
[340227926,1728872773173,250.0,0.00010144,2]
[340228152,1728872808271,1205.62,0.00010139,2]
[340228473,1728872839107,664.81,0.00010137,2]
[340228474,1728872843469,267.74914312,0.000102,2]
[340228483,1728872848490,267.7491431,0.00010208,2]
[340228484,1728872853499,267.7491431,0.00010215,2]
[340228485,1728872876669,15792.32163183,0.0001,2]
[340228486,1728872879682,250.0,0.0001016,2]
[340228487,1728872916227,-158.08,0.00010284,2]
[340228488,1728872916250,-338.4001,0.000103,2]
[340228489,1728872916275,-503.5199,0.00010315,2]
[340228490,1728872920510,-400.0,0.00010315,2]
[340228492,1728873027446,437.01,0.0001019,2]
[340228501,1728873031726,-1000.0,0.00010236,2]
[340228503,1728873031735,-1940.35462768,0.0001024,2]
[340228511,1728873031840,-1543.28537232,0.0001024,2]
[340228512,1728873031850,-154.63,0.00010424,2]
[340228513,1728873031859,-6056.90540848,0.00010499,2]
[340228514,1728873031964,-1244.37019934,0.00010499,2]
[340228515,1728873037970,-5808.31169218,0.00010499,2]
[340228516,1728873037983,-300.0,0.00010499,2]
[340228517,1728873037993,-150.0,0.00010499,2]
[340228518,1728873038002,-31341.7445,0.000105,2]
[340228519,1728873038011,-23433.79288782,0.000105,2]
[340228520,1728873038022,-599.2800009,0.000105,2]
[340228521,1728873038033,-1508.57123451,0.000105,2]
[340228522,1728873038044,-2645.25657677,0.000105,2]
[340228523,1728873038054,-1000.0,0.000105,2]
[340228524,1728873038063,-150.99,0.00010522,2]
[340228525,1728873038072,-499.99,0.00010522,2]
[340228526,1728873038081,-517.29,0.00010533,2]
[340228527,1728873038091,-129.91673871,0.00010799,2]
[340228528,1728873038237,-1861.96806129,0.00010799,2]
[340228529,1728873038246,-1007.0297,0.00010897,2]
[340228530,1728873038255,-251.1146,0.00010897,2]
[340228531,1728873038264,-211.807,0.00010897,2]
[340228532,1728873038273,-2178.1416231,0.00010899,2]
[340228533,1728873038284,-11313.24343117,0.00010899,2]
[340228534,1728873038295,-1279.7631426,0.00010899,2]
[340228537,1728873040246,-1074.37231311,0.00010899,2]
[340228538,1728873040257,-23928.59525537,0.00010899,2]
[340228539,1728873040269,-10432.9189482,0.00010899,2]
[340228540,1728873040280,-1406.98951982,0.00010899,2]
[340228543,1728873042935,-2289.24441577,0.00010899,2]
[340228544,1728873042947,-1829.909999,0.00010899,2]
[340228546,1728873043058,-5994.81000001,0.00010899,2]
[340228547,1728873043070,-38272.01135185,0.00010899,2]
[340228548,1728873043079,-16757.23,0.00010899,2]
[340228549,1728873043088,-5919.42210927,0.00010899,2]
[340228550,1728873043098,-171.78612486,0.000109,2]
[340228551,1728873043107,-381.1391439,0.000109,2]
[340228552,1728873043117,-1109.11478729,0.000109,2]
[340228553,1728873043129,-172.08,0.00010946,2]
[340228554,1728873043138,-157.77,0.00010959,2]
[340228555,1728873043148,-250.0,0.00010959,2]
[340228556,1728873043158,-150.0,0.00010959,2]
[340228557,1728873043167,-165.17,0.00010959,2]
[340228558,1728873043176,-599.06,0.00010959,2]